Cogmind - Beta 14 @@@ ROGUE MODE // 2025.04.28 @ 07:18:28 Player: Florist Result: Destroyed by 6X-V3M(R) with Subdweller Shrapnel Launcher Performance ------------- Evolutions (0) 0 Regions Visited (3) 600 Robots Destroyed (29) 145 Value Destroyed (659) 659 Prototype IDs (0) 0 Alien Tech Used (0) 0 Bonus (0) 0 TOTAL SCORE: 1404 Bonus ------- None Cogmind --------- Core Integrity 0/250 Matter 109/300 Energy 95/100 System Corruption 0% Temperature Cool (0) Movement Treading (240) Ox1 Location -10/Subcaves Parts ------- > --- POWER (1) -------- (None) > --- PROPULSION (2) --- Light Treads Light Treads > --- UTILITY (2) ------ High-capacity Storage Unit Signal Interpreter > --- WEAPON (2) ------- Small Laser Slug Cannon > --- INVENTORY (20) --- Light Treads Light Treads Aluminum Leg Aluminum Leg Improved Heat Sink Sensor Array Terrain Scanner Light Armor Plating Light Armor Plating Small Laser Small Laser Small Laser Particle Gun Peak State ------------ > --- POWER ------------ Ion Engine > --- PROPULSION ------- Light Treads Light Treads > --- UTILITY ---------- High-capacity Storage Unit Light Armor Plating > --- WEAPON ----------- Small Laser Slug Cannon > --- INVENTORY -------- Light Treads Light Treads Light Treads Aluminum Leg Aluminum Leg Improved Heat Sink Sensor Array Signal Interpreter Terrain Scanner Light Armor Plating Small Laser Small Laser Small Laser Small Laser Particle Gun Particle Gun [Rating: 12] Favorites ----------- Power Ion Engine Engine Ion Engine Propulsion Light Treads Treads Light Treads Utility High-capacity Storage Unit Storage High-capacity Storage Unit Processor Signal Interpreter Protection Light Armor Plating Weapon Small Laser Energy Gun Small Laser Ballistic Cannon Slug Cannon Build | -11 -10 -10 -10 ------- Run | Yrd Mat Min Sub Slots Evolved . | . . . . Power . | . . . . Propulsion . | . . . . Utility . | . . . . Weapon . | . . . . Parts Attached 16 | 4 7 2 3 Power 2 | 1 1 . . Engine 2 | 1 1 . . Core . | . . . . Reactor . | . . . . Propulsion 5 | 2 2 . 1 Treads 5 | 2 2 . 1 Leg . | . . . . Wheel . | . . . . Hover . | . . . . Flight . | . . . . Utility 4 | 1 2 1 . Device . | . . . . Storage 2 | 1 1 . . Processor 1 | . . 1 . Hackware . | . . . . Protection 1 | . 1 . . Artifact . | . . . . Weapon 5 | . 2 1 2 Energy Gun 4 | . 2 . 2 Energy Cannon . | . . . . Ballistic Gun . | . . . . Ballistic Cannon 1 | . . 1 . Launcher . | . . . . Special Weapon . | . . . . Impact Weapon . | . . . . Slashing Weapon . | . . . . Piercing Weapon . | . . . . Special Melee Weapon . | . . . . Unidentified Prototypes . | . . . . Parts Lost 4 | . . . 4 Power 1 | . . . 1 Propulsion 1 | . . . 1 Utility . | . . . . Weapon 2 | . . . 2 Highest Loss Streak 2 | . . . 2 To Critical Strikes 1 | . . . 1 Average Slot Usage (%) 92 | . 81 100 89 Engine 12 | . 14 14 4 Treads 27 | . 28 28 27 Storage 14 | . 14 14 14 Processor 5 | . . 5 14 Protection 4 | . . 8 . Energy Gun 19 | . 24 18 13 Ballistic Cannon 7 | . . 9 14 Peak Build Rating 12 | 4 8 12 12 Average Rating 9 | 3 6 10 11 On Entrance 6 | . 4 8 12 Naked Turns . | . . . . Heaviest Build 56 | 8 50 56 53 Greatest Support 40 | 40 40 40 40 Greatest Overweight (x) 1 | . 1 1 1 Average Overweight (x) . | . . 1 1 Largest Inventory Capacity 20 | 8 20 20 20 Average Capacity 18 | 7 19 20 20 Most Carried 16 | 5 15 16 16 Average Carried 13 | 4 10 15 15 Final Capacity 20 | 8 20 20 20 Final Carried 16 | 5 14 16 13 Class Distribution -------------------- 100% | Mutant Dominant Class ---------------- Mutant | -10/Materials Mutant | -10/Mines Mutant | -10/Subcaves Resources | -11 -10 -10 -10 ----------- Run | Yrd Mat Min Sub Matter Collected 515 | 174 126 164 51 Remotely . | . . . . Salvage Created 741 | . 510 187 44 Parts 53 | . 28 23 2 Haulers Intercepted 1 | . 1 . . Recyclers Shooed . | . . . . Parts Field Recycled . | . . . . Retrieved Matter . | . . . . Parts Self-Destructed 12 | . . . 12 Prevented . | . . . . Kills | -11 -10 -10 -10 ------- Run | Yrd Mat Min Sub Combat Hostiles Destroyed 24 | . 11 9 4 Guns 17 | . 11 3 3 Cannons 7 | . . 6 1 Classes Destroyed 7 | . 4 1 2 Worker 1 | . . 1 . Hauler 1 | . 1 . . Watcher 3 | . 3 . . Swarmer 11 | . 3 6 2 Grunt 11 | . 8 3 . Sentry 1 | . . . 1 Subdweller 1 | . . . 1 Best Kill Streak 3 | . 2 3 2 Combat Bots Only 3 | . 2 3 2 Max Kills in Single Turn 1 | . 1 1 1 Gunslinging . | . . . . Exploded . | . . . . Melee . | . . . . Uniques/NPCs Destroyed . | . . . . Combat | -11 -10 -10 -10 -------- Run | Yrd Mat Min Sub Hostile Shots Fired 137 | . 48 34 55 Missed 42 | . 17 10 15 Damage Taken 1329 | . 363 195 771 Core 295 | . 40 21 234 Absorbed by Shields . | . . . . Core Remaining (%) 100 | 100 . . . Volleys Fired 115 | . 47 35 33 Largest 2 | . 2 2 2 Hottest 113 | . 80 88 113 Shots Fired 214 | . 94 62 58 Gun 153 | . 94 34 25 Cannon 61 | . . 28 33 Launcher . | . . . . Special . | . . . . Kinetic 61 | . . 28 33 Thermal 153 | . 94 34 25 Explosive . | . . . . Electromagnetic . | . . . . Robot Hit Streak 13 | . 13 4 7 Robot Miss Streak 5 | . 4 5 3 Penetration Max . | . . . . Secondary Targets 1 | . . 1 . Max Gunslinging Chain 1 | . . 1 . Shots Hit Robots 114 | . 66 15 33 Core Hits 47 | . 30 10 7 Critical Kills . | . . . . Critical Parts Destroyed . | . . . . Critical Strikes 4 | . . . 4 Burn 2 | . . . 2 Destroy 2 | . . . 2 Melee Attacks . | . . . . Impact . | . . . . Slashing . | . . . . Piercing . | . . . . Sneak Attacks . | . . . . Combat Hostiles . | . . . . Follow-up Attacks . | . . . . Damage Inflicted 1749 | . 735 278 736 Guns 1124 | . 735 103 286 Cannons 625 | . . 175 450 Explosions . | . . . . Melee . | . . . . Ramming . | . . . . Kinetic 625 | . . 175 450 Thermal 1124 | . 735 103 286 Explosive . | . . . . Electromagnetic . | . . . . Impact . | . . . . Slashing . | . . . . Piercing . | . . . . Highest Corruption . | . . . . Average Corruption . | . . . . Corruption Purged . | . . . . Corruption Blocked . | . . . . Overload Shots . | . . . . Overflow Damage . | . . . . Projectiles . | . . . . Explosions . | . . . . Melee . | . . . . Knockbacks 8 | . . . 8 Impact . | . . . . Kinetic 8 | . . . 8 Secondary . | . . . . Self-Inflicted Damage . | . . . . Shots . | . . . . Rammed . | . . . . Targets Rammed . | . . . . Kicked . | . . . . Crushed . | . . . . Highest Temperature 262 | . 153 262 24 Average Temperature 60 | . 50 77 12 Received Heat Transfer 288 | . 192 6 90 Siege Activations . | . . . . Robots Corrupted . | . . . . Combat Hostiles . | . . . . Parts Fried . | . . . . Impact Corruptions . | . . . . Robots Melted . | . . . . Combat Hostiles . | . . . . Parts Melted 3 | . 3 . . Heat Transferred 2727 | . 1675 225 827 Parts Sabotaged . | . . . . Parts Stolen . | . . . . Parts Stripped . | . . . . Power Chain Reactions . | . . . . Alert | -11 -10 -10 -10 ------- Run | Yrd Mat Min Sub Peak Influence 222 | . 222 131 . Initial 38 | . . 38 . Average 52 | . 88 40 . Maximum Alert Level 1 | . 1 . . Low Security (%) 98 | 100 95 100 . Level 1 1 | . 4 . . Level 2 . | . . . . Level 3 . | . . . . Level 4 . | . . . . Level 5 . | . . . . High Security . | . . . . Max Security . | . . . . Squads Dispatched 1 | . 1 . . Investigation . | . . . . Extermination . | . . . . Reinforcement 1 | . 1 . . Assault . | . . . . Garrison . | . . . . Intercept . | . . . . Searches Triggered . | . . . . Construction Impeded . | . . . . Haulers Reinforced . | . . . . Active Scanning Responses . | . . . . Cargo Convoy Interrupts . | . . . . Stealth | -11 -10 -10 -10 --------- Run | Yrd Mat Min Sub Distress Signals 2 | . 2 . . Communications Jammed . | . . . . Distress Signals . | . . . . Times Spotted 33 | . 19 8 6 Peak Tracking Total 3 | . 3 3 3 Tactical Retreats 6 | . 4 1 1 Traps | -11 -10 -10 -10 ------- Run | Yrd Mat Min Sub Traps Triggered . | . . . . Indirectly . | . . . . Trap Hack Attempts . | . . . . Triggered . | . . . . Disarmed . | . . . . Reprogrammed . | . . . . Reused . | . . . . Traps Extracted . | . . . . Installed . | . . . . Triggered . | . . . . Machines | -11 -10 -10 -10 ---------- Run | Yrd Mat Min Sub Machines Disabled 1 | . . . 1 Max in Single Turn 1 | . . . 1 Machines Repaired . | . . . . Machines Dismantled . | . . . . Machines Sabotaged . | . . . . Overloaded Fab Kills . | . . . . Hacking | -11 -10 -10 -10 --------- Run | Yrd Mat Min Sub Machines Accessed 6 | . 4 1 1 Terminals 4 | . 3 1 . Fabricators . | . . . . Repair Stations . | . . . . Recycling Units 1 | . 1 . . Scanalyzers . | . . . . Garrison Access . | . . . . Total Hacks 13 | . 8 1 4 Successful 11 | . 6 1 4 Failed 2 | . 2 . . Catastrophic . | . . . . Database Lockouts . | . . . . Manual 11 | . 6 . 5 Terminals 8 | . 7 1 . Fabricators . | . . . . Repair Stations . | . . . . Recycling Units 1 | . 1 . . Scanalyzers . | . . . . Garrison Access . | . . . . Terminal Hacks 7 | . 2 1 4 Record 4 | . . . 4 Terminal Index 1 | . 1 . . Alert Level 1 | . 1 . . Zone Layout 1 | . . 1 . Fabricator Hacks . | . . . . Repair Station Hacks . | . . . . Recycling Unit Hacks 1 | . 1 . . Retrieve Components 1 | . 1 . . Scanalyzer . | . . . . Garrison Access Hacks . | . . . . Unauthorized Hacks 3 | . 3 . . Terminals 3 | . 3 . . Botnet 3 | . 3 . . Fabricators . | . . . . Repair Stations . | . . . . Recycling Units . | . . . . Scanalyzers . | . . . . Garrison Access . | . . . . Data Cores Recovered . | . . . . Used . | . . . . Hacking Detections 2 | . 2 . . Full Trace Events . | . . . . Feedback Events . | . . . . Feedback Blocked . | . . . . Robot Schematics Acquired . | . . . . Robots Built . | . . . . Authchips . | . . . . Time . | . . . . Total Robot Build Rating . | . . . . Part Schematics Acquired . | . . . . Parts Built . | . . . . Authchips . | . . . . Time . | . . . . Total Part Build Rating . | . . . . Parts Repaired . | . . . . Time . | . . . . Parts Recycled . | . . . . Recycled Matter . | . . . . Retrieved Matter . | . . . . Retrieved Components 10 | . 10 . . Parts Scanalyzed . | . . . . Part Schematics Acquired . | . . . . Parts Damaged . | . . . . Bothacking | -11 -10 -10 -10 ------------ Run | Yrd Mat Min Sub Used RIF Installer . | . . . . Robots Hacked . | . . . . Non-combat . | . . . . Combat . | . . . . Robot Hacks Applied . | . . . . Relay Couplers Released . | . . . . Fabnet Peak Effective % . | . . . . Robots Rewired . | . . . . Allies Hacked . | . . . . Hacks Repelled . | . . . . Allies | -11 -10 -10 -10 -------- Run | Yrd Mat Min Sub Total Allies . | . . . . Largest Group . | . . . . Highest-Rated Group . | . . . . Highest-Rated Ally . | . . . . Total Orders . | . . . . Ally Attacks . | . . . . Total Damage . | . . . . Kills . | . . . . Allies Corrupted . | . . . . Allies Melted . | . . . . Intel | -11 -10 -10 -10 ------- Run | Yrd Mat Min Sub Robot Analysis Total . | . . . . Derelict Logs Recovered 2 | . . 1 1 Drone Launches . | . . . . Drone Recoveries . | . . . . Exploration | -11 -10 -10 -10 ------------- Run | Yrd Mat Min Sub Turns Passed 5104 | 417 1409 2356 922 Spaces Moved 1731 | 41 481 870 339 Core 16 | 16 . . . Treads 1715 | 25 481 870 339 Legs . | . . . . Wheels . | . . . . Hover . | . . . . Flight . | . . . . Fastest Speed 50 | 50 160 240 240 Average Speed 236 | 117 239 240 240 Slowest Speed 240 | 160 240 240 240 Overloaded Moves . | . . . . Propulsion Burnouts . | . . . . Robots Hopped . | . . . . Cave-ins Triggered . | . . . . Exploration Rate (%) 50 | 6 71 105 21 Regions Visited 3 Branch Regions 2 Pre-discovered Areas 1 | . . 1 . Known Exits Taken 1 | . . 1 . Unknown Exits Taken 2 | 1 1 . . Scrap Searched 2 | . . 2 . Spaces Dug 6 | . . 6 . Terrain Destroyed 22 | . . 14 8 Melee . | . . . . Projectile 22 | . . 14 8 AOE . | . . . . Terrain Rammed . | . . . . Walls Destroyed . | . . . . Machines Disabled . | . . . . Actions | -11 -10 -10 -10 --------- Run | Yrd Mat Min Sub Total 2523 | 410 647 1076 390 Wait 637 | 357 97 168 15 Move 1728 | 40 480 869 339 Hop . | . . . . Pick Up 25 | 9 14 2 . Fast Attach . | . . . . Attach 11 | 4 4 . 3 Detach . | . . . . Swap 5 | . 3 2 . Drop 2 | . 2 . . Fire 115 | . 47 35 33 Melee . | . . . . Ram . | . . . . Kick . | . . . . Crush . | . . . . Escape Stasis . | . . . . Rewire . | . . . . Trap . | . . . . Miscellaneous . | . . . . Route ------- -11/Scrapyard -10/Materials (discovered 4 exits: *Mat x3 / *Min) -10/Mines (discovered 3 exits: *Mat x2 / *Sub) -10/Subcaves History --------- Turn | Location | Event 8 | -11/Scrapyard | Discovered new exit (range 15) 418 | -11/Scrapyard | Entered Materials 419 | -10/Materials | Build established: Mutant 939 | -10/Materials | Discovered new exit (range 9) 1280 | -10/Materials | Discovered new exit (range 16) 1612 | -10/Materials | Discovered new exit (range 16) 1703 | -10/Materials | Discovered new exit (range 15) 1827 | -10/Materials | Entered Mines 1828 | -10/Mines | Learned location of Storage (-8) 2141 | -10/Mines | Learned Materials stockpile data 2145 | -10/Mines | A weapon hastily lodged in a ceiling crevice suddenly fell to the ground 2622 | -10/Mines | Discovered new exit (range 14) 2629 | -10/Mines | Excavation squad dispatched 2629 | -10/Mines | A large section of the Mines collapsed 3242 | -10/Mines | Discovered new exit (range 4) 3265 | -10/Mines | Identified exit to Materials 4166 | -10/Mines | Discovered new exit (range 6) 4176 | -10/Mines | Identified exit to Subcaves 4183 | -10/Mines | Entered Subcaves 4227 | -10/Subcaves | Visited Clippyterm 4234 | -10/Subcaves | Learned Factory garrison access intel 4578 | -10/Subcaves | Learned location of 2 exits from Materials 5072 | -10/Subcaves | Core integrity fell below 50% 5104 | -10/Subcaves | Core integrity fell below 20% 5105 | -10/Subcaves | Destroyed by 6X-V3M(R) with Subdweller Shrapnel Launcher Last Messages --------------- 04533_ Acquired 15 matter. 04538_ Acquired 4 matter. 04578_ Acquired derelict log, extracted data. Data stored: Materials exits (x2). 05034_ Critical hit (Destroy). 05034_ Lgt. Treads destroyed. 05037_ SK-7Z9(R) knocked back. 05040_ SK-7Z9(R) suffers critical hit (Burn). 05040_ SK-7Z9(R) knocked back. 05043_ SK-7Z9(R) suffers critical hit (Destroy). 05043_ SK-7Z9(R) knocked back. 05076_ SK-7Z9(R) suffers critical hit (Destroy). 05076_ SK-7Z9(R) knocked back. 05079_ Slug penetrates SK-7Z9(R). 05079_ SK-7Z9(R) knocked back. 05080_ Particle Gun destroyed. 05082_ Destroyed Scrap Shield. 05082_ SK-7Z9(R) knocked back. 05095_ SK-7Z9(R) destroyed. 05100_ 6X-V3M(R) knocked back. Map ----- +----------------------------------------------------+ | ?????# ##????????????????????????????????????????? | | ?????###?????????????????????????????????????????? | | ?????????????????????????????????????????????????? | | ?????????????????????????????????????????????????? | | ?????????????????????????????????????????????????? | | ?????????????????????????????????????????????????? | | ?????????????????????????????????????????????????? | | ?????????????????????????????????????????????????? | | ?????????????????????????????????????????????????? | | ?????????????????????????????????????????????????? | | ?????????????????????????????????????????????????? | | ?????????????????????????????????????????????????? | | ????????????????????????##???????????????????????? | | ???????????????????????? ###????????????????????? | | ???????????????????????? #????????????????????? | | ????????????????#??????? #???????????????????? | | ???????????????## ?????? <##??????????????????? | | ???????????????# " ????? #??????????????????? | | ???????????????# ????? < <#??????????????????? | | ???????????????? ???? < <#??????????????????? | | ?????????????????? ##### #??????????????????? | | ??????????????????? # #??????????????????? | | ??????????????###??##% #???????????????????? | | #?????######### #??# ;#???????????????????? | | ##???## #### R ;##??????????????????? | | #???# ## @ ; #??????????????????? | | #???# ###????????????????? | | ###?## #????????????????? | | ##?# ## #???????????????? | | ### ## #; ???????????? | | ## ## # ### #??????????? | | ####### ###?? #######??????????? | | #????## #?????##????????????????? | | # #?????# #???????????????????????? | | ###### ##?????## ## #?????????????????????? | | ?????####???????###### #?????????????????????? | | ?????????????????????# #?????????????????????? | | ????????????????????? #????????????????????? | | ????????????????????? #????????????????????? | | ????????????????????# ???????????????????? | | ????????????????????## ??????????????????? | | ?????????????????????## # ## #?????????????????? | | ???????????????????????## #?###?????????????????? | | ????????????????????????? #?????????????????????? | | ????????????????????????? #?????????????????????? | | ????????????????????????? ?????????????????????? | | ?????????????????????????? #?????????????????????? | | ?????????????????????????????????????????????????? | | ?????????????????????????????????????????????????? | | ?????????????????????????????????????????????????? | +----------------------------------------------------+ Best States ------------- Heat Dissipation 25 Energy Generation 10 Energy Capacity 250 Matter Stores 300 Matter Capacity 300 Sight Range 16 Terrain Scan Density 10 Armor Coverage 150 Evasion (%) 50 Recoil Reduction 2 Item Schematics ----------------- None Robot Schematics ------------------ None Fabricated ------------ Nothing Alien Tech Used ----------------- None Achievements -------------- None Challenges ------------ None Game ------ Seed DiametricDefenseShockpuncher Manual? 0 Play Time 00:16:04 Cumulative 59.9 hours Start 2025.04.28 @ 07:02:18 End 2025.04.28 @ 07:18:28 Sessions 1 Manual Loads 0 Difficulty Rogue Special Mode None Game No. 73 Rogue 73 Adventurer 0 Explorer 0 Win Type - Total 0 Types 0/0/0/0/0/0/0/0/0 Lore% 14 Gallery% 43 Achievement% 37 Wizard Run 0 Options --------- Layout 1 ASCII 0 Keyboard 0 Movement Mouse Keybinds 0 Fullscreen 1 Font 32/SmallcapsGlow Map View 77x35 Zoom Use 0% Tactical HUD 1 Map Filters NONE Filters NONE Steam 1 RUN: 0505f3ae-7c01-45f8-b77e-80870c98da30